fUST/lending_fUST_20250723
["ID","MTS","AMOUNT","RATE_DAILY","PERIOD"]
[374104387,1753207839638,-460.0,0.00016828,2]
[374104388,1753207839648,-460.0,0.00016828,2]
[374104389,1753207839658,-460.0,0.00016828,2]
[374104390,1753207839669,-460.0,0.00016828,2]
[374104391,1753207839678,-460.0,0.00016828,2]
[374104392,1753207839688,-460.0,0.00016828,2]
[374104393,1753207839698,-460.0,0.00016828,2]
[374104394,1753207839707,-460.0,0.00016828,2]
[374104395,1753207839717,-460.0,0.00016828,2]
[374104396,1753207839726,-460.0,0.00016828,2]
[374104397,1753207839736,-388.23982907,0.00016828,2]
[374104398,1753207839747,-460.0,0.00016828,2]
[374104399,1753207839757,-460.0,0.00016828,2]
[374104400,1753207839766,-460.0,0.00016828,2]
[374104401,1753207839775,-460.0,0.00016828,2]
[374104402,1753207839785,-460.0,0.00016828,2]
[374104403,1753207839794,-460.0,0.00016828,2]
[374104404,1753207839804,-460.0,0.00016828,2]
[374104405,1753207839814,-460.0,0.00016828,2]
[374104406,1753207839824,-460.0,0.00016828,2]
[374104407,1753207839833,-460.0,0.00016828,2]
[374104408,1753207839844,-1191.42,0.00016828,2]
[374104409,1753207839853,-460.73762383,0.00016828,2]
[374104410,1753207839863,-460.0,0.00016828,2]
[374104411,1753207839873,-460.0,0.00016828,2]
[374104412,1753207839883,-460.0,0.00016828,2]
[374104413,1753207839893,-460.0,0.00016828,2]
[374104414,1753207839902,-460.0,0.00016828,2]
[374104415,1753207839912,-460.0,0.00016828,2]
[374104416,1753207839921,-460.0,0.00016828,2]
[374104418,1753207839931,-460.0,0.00016828,2]
[374104420,1753207839940,-460.0,0.00016828,2]
[374104422,1753207839950,-499.14,0.00016828,2]
[374104424,1753207839960,-1175.98,0.00016828,2]
[374104426,1753207839969,-460.0,0.00016828,2]
[374104428,1753207839978,-460.0,0.00016828,2]
[374104430,1753207839988,-460.0,0.00016828,2]
[374104432,1753207839999,-460.0,0.00016828,2]
[374104434,1753207840008,-460.0,0.00016828,2]
[374104436,1753207840019,-460.0,0.00016828,2]
[374104438,1753207840028,-460.0,0.00016828,2]
[374104440,1753207840037,-1063.61,0.00016828,2]
[374104442,1753207840046,-500.0,0.00016828,2]
[374104444,1753207840056,-460.0,0.00016828,2]
[374104446,1753207840066,-461.75750865,0.00016828,2]
[374104448,1753207840075,-460.0,0.00016828,2]
[374104450,1753207840085,-572.3,0.00016828,2]
[374104452,1753207840094,-460.0,0.00016828,2]
[374104454,1753207840104,-460.0,0.00016828,2]
[374104456,1753207840113,-460.0,0.00016828,2]
[374104458,1753207840123,-460.0,0.00016828,2]
[374104460,1753207840133,-460.0,0.00016828,2]
[374104462,1753207840143,-460.0,0.00016828,2]
[374104465,1753207840153,-460.0,0.00016828,2]
[374104467,1753207840162,-155.0,0.00016828,2]
[374104469,1753207840172,-460.0,0.00016828,2]
[374104471,1753207840182,-460.0,0.00016828,2]
[374104473,1753207840192,-460.0,0.00016828,2]
[374104475,1753207840202,-460.0,0.00016828,2]
[374104477,1753207840211,-460.0,0.00016828,2]
[374104478,1753207840221,-460.0,0.00016828,2]
[374104480,1753207840231,-486.97,0.00016828,2]
[374104481,1753207840242,-460.0,0.00016828,2]
[374104482,1753207840251,-460.0,0.00016828,2]
[374104484,1753207840261,-460.0,0.00016828,2]
[374104486,1753207840271,-464.56500163,0.00016828,2]
[374104487,1753207840286,-460.0,0.00016828,2]
[374104488,1753207840295,-460.0,0.00016828,2]
[374104490,1753207840306,-460.0,0.00016828,2]
[374104491,1753207840316,-460.0,0.00016828,2]
[374104492,1753207840326,-461.3476032,0.00016828,2]
[374104494,1753207840335,-460.0,0.00016829,2]
[374104496,1753207840345,-460.0,0.00016829,2]
[374104497,1753207840355,-460.0,0.00016829,2]
[374104499,1753207840364,-460.0,0.00016829,2]
[374104500,1753207840374,-460.0,0.00016829,2]
[374104502,1753207840384,-460.0,0.00016829,2]
[374104504,1753207840394,-460.0,0.00016829,2]
[374104505,1753207840404,-460.0,0.00016829,2]
[374104507,1753207840414,-460.0,0.00016829,2]
[374104508,1753207840423,-460.0,0.00016829,2]
[374104509,1753207840433,-460.0,0.00016829,2]
[374104510,1753207840443,-460.0,0.00016829,2]
[374104511,1753207840453,-460.0,0.00016829,2]
[374104512,1753207840462,-460.0,0.00016829,2]
[374104513,1753207840471,-446.56643104,0.00016829,2]
[374104514,1753207840481,-290.70041192,0.00016829,2]
[374104515,1753207840493,-460.0,0.00016829,2]
[374104516,1753207840502,-460.0,0.00016829,2]
[374104517,1753207840513,-295.87952164,0.00016829,2]
[374104518,1753207840522,-460.0,0.00016829,2]
[374104519,1753207840531,-460.0,0.00016829,2]
[374104520,1753207840541,-460.0,0.00016829,2]
[374104521,1753207840550,-460.0,0.00016829,2]
[374104522,1753207840559,-500.0,0.00016829,2]
[374104523,1753207840569,-460.0,0.00016829,2]
[374104524,1753207840578,-460.0,0.00016829,2]
[374104525,1753207840587,-467.53853254,0.00016829,2]
[374104526,1753207840597,-460.0,0.00016829,2]
[374104527,1753207840607,-460.0,0.00016829,2]
[374104528,1753207840616,-460.0,0.00016829,2]
[374104529,1753207840626,-460.0,0.00016829,2]
[374104530,1753207840635,-188.85628207,0.00016829,2]
[374104531,1753207840644,-500.0,0.00016829,2]
[374104532,1753207840654,-500.0,0.00016829,2]
[374104533,1753207840663,-500.0,0.00016829,2]
[374104534,1753207840672,-460.0,0.00016829,2]
[374104535,1753207840682,-460.0,0.00016829,2]
[374104536,1753207840691,-460.0,0.00016829,2]
[374104537,1753207840701,-529.41,0.00016829,2]
[374104538,1753207840710,-460.0,0.00016829,2]
[374104539,1753207840720,-811.57,0.00016829,2]
[374104540,1753207840730,-460.0,0.00016829,2]
[374104541,1753207840740,-460.0,0.00016829,2]
[374104542,1753207840750,-460.0,0.00016829,2]
[374104543,1753207840760,-460.0,0.0001683,2]
[374104544,1753207840770,-341.06620171,0.0001683,2]
[374104545,1753207840779,-460.0,0.0001683,2]
[374104546,1753207840789,-460.0,0.0001683,2]
[374104547,1753207840799,-691.44603946,0.0001683,2]
[374104548,1753207840808,-460.0,0.0001683,2]
[374104549,1753207840818,-463.70519702,0.0001683,2]
[374104550,1753207840828,-460.0,0.0001683,2]
[374104551,1753207840838,-460.0,0.0001683,2]
[374104552,1753207840847,-460.0,0.0001683,2]
[374104553,1753207840858,-460.0,0.0001683,2]
[374104554,1753207840867,-460.0,0.0001683,2]
[374104555,1753207840876,-500.0,0.0001683,2]
[374104556,1753207841003,-460.0,0.0001683,2]
[374104557,1753207841013,-460.0,0.0001683,2]
[374104558,1753207841024,-460.0,0.0001683,2]
[374104559,1753207841035,-460.0,0.0001683,2]
[374104560,1753207841045,-460.0,0.0001683,2]
[374104561,1753207841055,-460.0,0.0001683,2]
[374104562,1753207841065,-518.61029118,0.0001683,2]
[374104563,1753207841075,-2509.47,0.0001683,2]
[374104564,1753207841085,-460.0,0.0001683,2]
[374104565,1753207841095,-460.0,0.0001683,2]
[374104566,1753207841104,-460.0,0.0001683,2]
[374104567,1753207841114,-756.34,0.0001683,2]
[374104568,1753207841124,-460.0,0.0001683,2]
[374104569,1753207841133,-551.36195586,0.0001683,2]
[374104570,1753207841142,-460.0,0.0001683,2]
[374104571,1753207841158,-460.0,0.0001683,2]
[374104572,1753207841167,-460.0,0.0001683,2]
[374104573,1753207841177,-500.0,0.0001683,2]
[374104574,1753207841186,-460.0,0.0001683,2]
[374104575,1753207841199,-460.0,0.0001683,2]
[374104576,1753207841210,-460.0,0.0001683,2]
[374104577,1753207841219,-460.0,0.0001683,2]
[374104578,1753207841229,-460.0,0.0001683,2]
[374104579,1753207841239,-1149.37,0.0001683,2]
[374104580,1753207841251,-460.0,0.0001683,2]
[374104581,1753207841260,-460.0,0.0001683,2]
[374104582,1753207841275,-460.0,0.00016831,2]
[374104583,1753207841284,-460.0,0.00016831,2]
[374104584,1753207841294,-460.0,0.00016831,2]
[374104585,1753207841304,-468.73905628,0.00016831,2]
[374104586,1753207841315,-460.0,0.00016831,2]
[374104587,1753207841324,-460.0,0.00016831,2]
[374104588,1753207841333,-460.0,0.00016831,2]
[374104589,1753207841342,-500.0,0.00016831,2]
[374104590,1753207841353,-592.14,0.00016831,2]
[374104591,1753207841363,-684.19,0.00016831,2]
[374104592,1753207841372,-500.0,0.00016832,2]
[374104593,1753207841381,-425.50805841,0.00017101,2]
[374104594,1753207841391,-441.73161477,0.00017101,2]
[374104595,1753207841401,-500.0,0.00017101,2]
[374104596,1753207841410,-500.0,0.00017101,2]
[374104597,1753207841419,-500.0,0.00017101,2]
[374104598,1753207841429,-500.0,0.00017101,2]
[374104599,1753207841438,-626.0877172,0.00017101,2]
[374104600,1753207841447,-902.26,0.00017101,2]
[374104601,1753207841457,-460.0,0.00017101,2]
[374104602,1753207841467,-460.0,0.00017102,2]
[374104603,1753207841476,-1912.77,0.00017102,2]
[374104604,1753207841486,-460.0,0.00017102,2]
[374104605,1753207841498,-460.0,0.00017102,2]
[374104606,1753207841507,-591.4438068,0.00017102,2]
[374104607,1753207841516,-460.0,0.00017102,2]
[374104608,1753207841525,-460.0,0.00017102,2]
[374104609,1753207841534,-852.5,0.00017102,2]
[374104610,1753207841543,-460.0,0.00017102,2]
[374104611,1753207841552,-460.0,0.00017102,2]
[374104612,1753207841561,-460.0,0.00017102,2]
[374104613,1753207841570,-460.0,0.00017102,2]
[374104614,1753207841579,-205.37752916,0.00017102,2]
[374104615,1753207841589,-460.0,0.00017102,2]
[374104616,1753207841598,-460.0,0.00017102,2]
[374104617,1753207841608,-460.0,0.00017102,2]
[374104618,1753207841617,-460.0,0.00017102,2]
[374104619,1753207841627,-529.08,0.00017102,2]
[374104620,1753207841637,-460.0,0.00017102,2]
[374104621,1753207841647,-460.0,0.00017102,2]
[374104622,1753207841657,-460.0,0.00017102,2]
[374104623,1753207841666,-460.0,0.00017102,2]
[374104624,1753207841675,-460.0,0.00017102,2]
[374104625,1753207841685,-460.0,0.00017102,2]
[374104626,1753207841694,-460.0,0.00017102,2]
[374104627,1753207841703,-460.0,0.00017102,2]
[374104628,1753207841713,-460.0,0.00017102,2]
[374104629,1753207841722,-460.0,0.00017102,2]
[374104630,1753207841732,-460.0,0.00017102,2]
[374104631,1753207841741,-460.0,0.00017102,2]
[374104632,1753207841751,-460.0,0.00017102,2]
[374104633,1753207841761,-1191.42,0.00017102,2]
[374104634,1753207841770,-524.0,0.00017102,2]
[374104635,1753207841779,-460.0,0.00017102,2]
[374104636,1753207841789,-460.0,0.00017102,2]
[374104637,1753207841798,-460.0,0.00017102,2]
[374104638,1753207841808,-460.0,0.00017102,2]
[374104639,1753207841817,-1175.98,0.00017102,2]
[374104640,1753207841826,-460.0,0.00017102,2]
[374104641,1753207841836,-460.0,0.00017102,2]
[374104642,1753207841846,-1063.61,0.00017102,2]
[374104643,1753207841855,-460.0,0.00017102,2]
[374104644,1753207841864,-460.0,0.00017102,2]
[374104645,1753207841874,-460.0,0.00017102,2]
[374104646,1753207841883,-460.0,0.00017102,2]
[374104647,1753207841893,-460.0,0.00017102,2]
[374104648,1753207841903,-460.0,0.00017102,2]
[374104649,1753207841913,-460.0,0.00017102,2]
[374104650,1753207841923,-464.95179746,0.00017102,2]
[374104651,1753207841933,-460.0,0.00017102,2]
[374104652,1753207841943,-460.0,0.00017102,2]
[374104653,1753207841953,-460.0,0.00017102,2]
[374104654,1753207841962,-289.19,0.00017102,2]
[374104655,1753207841971,-460.0,0.00017103,2]
[374104656,1753207841981,-460.0,0.00017103,2]
[374104657,1753207841990,-460.0,0.00017103,2]
[374104658,1753207842001,-460.0,0.00017103,2]
[374104659,1753207842011,-460.0,0.00017103,2]
[374104660,1753207842020,-460.0,0.00017103,2]
[374104661,1753207842030,-460.0,0.00017103,2]
[374104662,1753207842039,-460.0,0.00017103,2]
[374104663,1753207842048,-255.55403481,0.00017103,2]
[374104664,1753207842058,-500.0,0.00017103,2]
[374104665,1753207842067,-811.57,0.00017103,2]
[374104666,1753207842076,-460.0,0.00017103,2]
[374104667,1753207842086,-460.0,0.00017104,2]
[374104668,1753207842095,-460.0,0.00017104,2]
[374104669,1753207842104,-460.0,0.00017104,2]
[374104670,1753207842114,-2509.47,0.00017104,2]
[374104671,1753207842123,-460.0,0.00017104,2]
[374104672,1753207842132,-756.34,0.00017104,2]
[374104673,1753207842141,-460.0,0.00017104,2]
[374104674,1753207842151,-1149.37,0.00017104,2]
[374104675,1753207842160,-460.0,0.00017105,2]
[374104676,1753207842170,-500.0,0.00017105,2]
[374104677,1753207842179,-592.14,0.00017105,2]
[374104678,1753207842192,-684.19,0.00017105,2]
[374104679,1753207842204,-902.26,0.00017375,2]
[374104680,1753207842213,-460.0,0.00017375,2]
[374104681,1753207842223,-460.0,0.00017376,2]
[374104682,1753207842232,-1912.77,0.00017376,2]
[374104683,1753207842241,-460.0,0.00017376,2]
[374104684,1753207842252,-852.5,0.00017376,2]
[374104685,1753207842261,-460.0,0.00017376,2]
[374104686,1753207842271,-460.0,0.00017376,2]
[374104687,1753207842284,-460.0,0.00017376,2]
[374104688,1753207842293,-460.0,0.00017376,2]
[374104689,1753207842302,-460.0,0.00017376,2]
[374104690,1753207842312,-460.0,0.00017376,2]
[374104691,1753207842321,-460.0,0.00017376,2]
[374104692,1753207842332,-460.0,0.00017376,2]
[374104693,1753207842343,-529.08,0.00017376,2]
[374104694,1753207842354,-460.0,0.00017376,2]
[374104695,1753207842364,-460.0,0.00017376,2]
[374104696,1753207842373,-460.0,0.00017376,2]
[374104697,1753207842382,-460.0,0.00017376,2]
[374104698,1753207842391,-460.0,0.00017376,2]
[374104699,1753207842401,-605.32,0.00017376,2]
[374104700,1753207842411,-460.0,0.00017376,2]
[374104701,1753207842420,-460.0,0.00017376,2]
[374104702,1753207842429,-1191.42,0.00017376,2]
[374104703,1753207842439,-460.0,0.00017376,2]
[374104704,1753207842449,-1175.98,0.00017376,2]
[374104705,1753207842458,-1063.61,0.00017376,2]
[374104706,1753207842468,-460.0,0.00017376,2]
[374104707,1753207842477,-460.0,0.00017376,2]
[374104708,1753207842487,-277.2,0.00017376,2]
[374104709,1753207842498,-460.0,0.00017376,2]
[374104710,1753207842507,-460.0,0.00017376,2]
[374104711,1753207842516,-460.0,0.00017376,2]
[374104712,1753207842526,-460.0,0.00017376,2]
[374104713,1753207842535,-460.0,0.00017376,2]
[374104714,1753207842544,-460.0,0.00017376,2]
[374104715,1753207842554,-460.0,0.00017377,2]
[374104716,1753207842564,-460.0,0.00017377,2]
[374104717,1753207842573,-460.0,0.00017377,2]
[374104718,1753207842582,-346.61264477,0.00017377,2]
[374104719,1753207842592,-419.50796936,0.00017377,2]
[374104720,1753207842602,-811.57,0.00017377,2]
[374104721,1753207842611,-244.5,0.00017378,2]
[374104722,1753207842621,-460.0,0.00017378,2]
[374104723,1753207842630,-460.0,0.00017378,2]
[374104725,1753207842639,-2509.47,0.00017378,2]
[374104726,1753207842649,-460.0,0.00017378,2]
[374104727,1753207842659,-756.34,0.00017378,2]
[374104728,1753207842668,-460.0,0.00017378,2]
[374104729,1753207842679,-1149.37,0.00017378,2]
[374104730,1753207842689,-460.0,0.00017379,2]
[374104731,1753207842698,-592.14,0.00017379,2]
[374104732,1753207842707,-684.19,0.00017379,2]
[374104733,1753207842717,-902.26,0.00017649,2]
[374104735,1753207842726,-460.0,0.00017649,2]
[374104736,1753207842735,-460.0,0.0001765,2]
[374104737,1753207842746,-1912.77,0.0001765,2]
[374104738,1753207842755,-460.0,0.0001765,2]
[374104739,1753207842764,-852.5,0.0001765,2]
[374104740,1753207842774,-460.0,0.0001765,2]
[374104741,1753207842783,-460.0,0.0001765,2]
[374104742,1753207842793,-460.0,0.0001765,2]
[374104743,1753207842802,-460.0,0.0001765,2]
[374104744,1753207842811,-460.0,0.0001765,2]
[374104745,1753207842821,-460.0,0.0001765,2]
[374104746,1753207842830,-460.0,0.0001765,2]
[374104747,1753207842840,-529.08,0.0001765,2]
[374104748,1753207842849,-460.0,0.0001765,2]
[374104749,1753207842859,-460.0,0.0001765,2]
[374104750,1753207842869,-460.0,0.0001765,2]
[374104751,1753207842878,-460.0,0.0001765,2]
[374104752,1753207842887,-460.0,0.0001765,2]
[374104753,1753207842897,-460.0,0.0001765,2]
[374104755,1753207842906,-1191.42,0.0001765,2]
[374104757,1753207842915,-460.0,0.0001765,2]
[374104759,1753207842925,-1175.98,0.0001765,2]
[374104761,1753207842934,-1063.61,0.0001765,2]
[374104763,1753207842943,-460.0,0.0001765,2]
[374104765,1753207842953,-460.0,0.0001765,2]
[374104767,1753207842962,-460.0,0.0001765,2]
[374104769,1753207842972,-460.0,0.0001765,2]
[374104771,1753207842981,-460.0,0.0001765,2]
[374104773,1753207842990,-460.0,0.0001765,2]
[374104775,1753207843001,-460.0,0.0001765,2]
[374104777,1753207843010,-179.79,0.0001765,2]
[374104779,1753207843019,-460.0,0.00017651,2]
[374104781,1753207843028,-460.0,0.00017651,2]
[374104783,1753207843037,-460.0,0.00017651,2]
[374104785,1753207843046,-811.57,0.00017651,2]
[374104787,1753207843055,-460.0,0.00017652,2]
[374104789,1753207843064,-2509.47,0.00017652,2]
[374104791,1753207843073,-460.0,0.00017652,2]
[374104793,1753207843082,-756.34,0.00017652,2]
[374104795,1753207843092,-460.0,0.00017652,2]
[374104797,1753207843101,-1149.37,0.00017652,2]
[374104799,1753207843110,-460.0,0.00017653,2]
[374104801,1753207843119,-592.14,0.00017653,2]
[374104803,1753207843128,-684.19,0.00017653,2]
[374104805,1753207843137,-2236.35669188,0.000179,2]
[374104807,1753207843146,-902.26,0.00017923,2]
[374104809,1753207843156,-460.0,0.00017923,2]
[374104811,1753207843165,-460.0,0.00017924,2]
[374104813,1753207843175,-1912.77,0.00017924,2]
[374104815,1753207843184,-460.0,0.00017924,2]
[374104817,1753207843193,-852.5,0.00017924,2]
[374104818,1753207843202,-460.0,0.00017924,2]
[374104820,1753207843212,-460.0,0.00017924,2]
[374104822,1753207843221,-460.0,0.00017924,2]
[374104824,1753207843231,-460.0,0.00017924,2]
[374104826,1753207843241,-460.0,0.00017924,2]
[374104828,1753207843254,-460.0,0.00017924,2]
[374104830,1753207843263,-460.0,0.00017924,2]
[374104832,1753207843275,-529.08,0.00017924,2]
[374104835,1753207843285,-484.57,0.00017924,2]
[374104837,1753207843295,-460.0,0.00017924,2]
[374104839,1753207843304,-460.0,0.00017924,2]
[374104841,1753207843314,-460.0,0.00017924,2]
[374104843,1753207843324,-1191.42,0.00017924,2]
[374104845,1753207843333,-191.9,0.00017924,2]
[374104847,1753207843343,-1175.98,0.00017924,2]
[374104849,1753207843353,-1063.61,0.00017924,2]
[374104851,1753207843363,-571.65,0.00017924,2]
[374104853,1753207843372,-460.0,0.00017924,2]
[374104855,1753207843381,-528.0,0.00017924,2]
[374104857,1753207843390,-460.0,0.00017924,2]
[374104859,1753207843399,-460.0,0.00017924,2]
[374104861,1753207843409,-460.0,0.00017924,2]
[374104863,1753207843418,-460.0,0.00017924,2]
[374104865,1753207843427,-460.0,0.00017925,2]
[374104866,1753207843436,-460.0,0.00017925,2]
[374104868,1753207843448,-460.0,0.00017925,2]
[374104870,1753207843458,-811.57,0.00017925,2]
[374104872,1753207843467,-460.0,0.00017926,2]
[374104873,1753207843476,-2509.47,0.00017926,2]
[374104874,1753207843486,-460.0,0.00017926,2]
[374104876,1753207843496,-756.34,0.00017926,2]
[374104878,1753207843505,-460.0,0.00017926,2]
[374104879,1753207843515,-1149.37,0.00017926,2]
[374104880,1753207843524,-460.0,0.00017927,2]
[374104882,1753207843534,-592.14,0.00017927,2]
[374104884,1753207843543,-684.19,0.00017927,2]
[374104886,1753207843553,-160.0,0.000181,2]
[374104893,1753207843656,-2236.35669161,0.00018176,2]
[374104894,1753207843666,-215.80012421,0.0001819,2]
[374104895,1753207843676,-214.6393183,0.00018191,2]
[374104896,1753207843686,-476.60259688,0.00018191,2]
[374104897,1753207843696,-902.26,0.00018197,2]
[374104898,1753207843706,-460.0,0.00018197,2]
[374104899,1753207843715,-439.566044,0.00018198,2]
[374104900,1753207843725,-1912.77,0.00018198,2]
[374104901,1753207843734,-350.18139532,0.00018198,2]
[374104902,1753207843743,-852.5,0.00018198,2]
[374104903,1753207843754,-460.0,0.00018198,2]
[374104904,1753207843763,-460.0,0.00018198,2]
[374104905,1753207843773,-460.0,0.00018198,2]
[374104906,1753207843783,-460.0,0.00018198,2]
[374104907,1753207843792,-460.0,0.00018198,2]
[374104908,1753207843801,-460.0,0.00018198,2]
[374104909,1753207843810,-460.0,0.00018198,2]
[374104910,1753207843820,-529.08,0.00018198,2]
[374104911,1753207843831,-460.0,0.00018198,2]
[374104912,1753207843840,-460.0,0.00018198,2]
[374104913,1753207843849,-460.0,0.00018198,2]
[374104914,1753207843858,-1191.42,0.00018198,2]
[374104915,1753207843868,-1175.98,0.00018198,2]
[374104916,1753207843877,-1063.61,0.00018198,2]
[374104917,1753207843886,-460.0,0.00018198,2]
[374104918,1753207843895,-197.1,0.00018198,2]
[374104919,1753207843904,-460.0,0.00018198,2]
[374104920,1753207843913,-460.0,0.00018198,2]
[374104921,1753207843922,-460.0,0.00018198,2]
[374104922,1753207843932,-460.0,0.00018199,2]
[374104923,1753207843941,-460.0,0.00018199,2]
[374104924,1753207843950,-460.0,0.00018199,2]
[374104925,1753207843960,-811.57,0.00018199,2]
[374104926,1753207843969,-460.0,0.000182,2]
[374104927,1753207843978,-2509.47,0.000182,2]
[374104928,1753207843987,-460.0,0.000182,2]
[374104929,1753207843998,-756.34,0.000182,2]
[374104930,1753207844008,-460.0,0.000182,2]
[374104931,1753207844018,-1149.37,0.000182,2]
[374104932,1753207844027,-460.0,0.00018201,2]
[374104933,1753207844037,-592.14,0.00018201,2]
[374104934,1753207844047,-684.19,0.00018201,2]
[374104935,1753207844057,-420.0,0.00018381,2]
[374104936,1753207844066,-2236.35669161,0.00018452,2]
[374104937,1753207844076,-902.26,0.00018471,2]
[374104938,1753207844086,-153.83690913,0.00018471,2]
[374104939,1753207844096,-1912.77,0.00018472,2]
[374104940,1753207844105,-852.5,0.00018472,2]
[374104941,1753207844114,-236.70788544,0.00018472,2]
[374104942,1753207844124,-460.0,0.00018472,2]
[374104943,1753207844133,-460.0,0.00018472,2]
[374104944,1753207844143,-460.0,0.00018472,2]
[374104945,1753207844152,-460.0,0.00018472,2]
[374104946,1753207844161,-460.0,0.00018472,2]
[374104947,1753207844172,-601.46,0.00018472,2]
[374104948,1753207844182,-529.08,0.00018472,2]
[374104949,1753207844192,-460.0,0.00018472,2]
[374104950,1753207844201,-460.0,0.00018472,2]
[374104951,1753207844210,-460.0,0.00018472,2]
[374104952,1753207844220,-1191.42,0.00018472,2]
[374104953,1753207844230,-1175.98,0.00018472,2]
[374104954,1753207844239,-1063.61,0.00018472,2]
[374104955,1753207844251,-460.0,0.00018472,2]
[374104956,1753207844261,-460.0,0.00018472,2]
[374104957,1753207844271,-460.0,0.00018472,2]
[374104958,1753207844284,-460.0,0.00018472,2]
[374104959,1753207844293,-460.0,0.00018473,2]
[374104960,1753207844302,-364.54,0.00018473,2]
[374104961,1753207844312,-460.0,0.00018473,2]
[374104962,1753207844322,-811.57,0.00018473,2]
[374104963,1753207844332,-287.48946486,0.00018474,2]
[374104964,1753207844341,-2509.47,0.00018474,2]
[374104965,1753207844351,-460.0,0.00018474,2]
[374104966,1753207844361,-756.34,0.00018474,2]
[374104967,1753207844370,-460.0,0.00018474,2]
[374104968,1753207844379,-1149.37,0.00018474,2]
[374104969,1753207844389,-460.0,0.00018475,2]
[374104970,1753207844399,-592.14,0.00018475,2]
[374104971,1753207844407,-684.19,0.00018475,2]
[374104972,1753207844417,-4625.51782499,0.00018646,2]
[374104973,1753207844426,-260.0,0.00018648,2]
[374104974,1753207844435,-2236.35669161,0.00018728,2]
[374104975,1753207844444,-902.26,0.00018745,2]
[374104976,1753207844454,-1912.77,0.00018746,2]
[374104977,1753207844464,-852.5,0.00018746,2]
[374104978,1753207844474,-460.0,0.00018746,2]
[374104979,1753207844484,-460.0,0.00018746,2]
[374104980,1753207844494,-460.0,0.00018746,2]
[374104981,1753207844505,-280.17794852,0.00018746,2]
[374104982,1753207844514,-460.0,0.00018746,2]
[374104983,1753207844523,-529.08,0.00018746,2]
[374104984,1753207844532,-460.0,0.00018746,2]
[374104985,1753207844542,-460.0,0.00018746,2]
[374104986,1753207844551,-460.0,0.00018746,2]
[374104987,1753207844560,-1191.42,0.00018746,2]
[374104988,1753207844570,-1175.98,0.00018746,2]
[374104989,1753207844579,-1063.61,0.00018746,2]
[374104990,1753207844588,-460.0,0.00018746,2]
[374104991,1753207844597,-460.0,0.00018746,2]
[374104992,1753207844606,-460.0,0.00018746,2]
[374104993,1753207844615,-476.63770106,0.00018747,2]
[374104994,1753207844625,-460.0,0.00018747,2]
[374104995,1753207844634,-811.57,0.00018747,2]
[374104996,1753207844643,-2509.47,0.00018748,2]
[374104997,1753207844653,-460.0,0.00018748,2]
[374104998,1753207844662,-756.34,0.00018748,2]
[374104999,1753207844671,-460.0,0.00018748,2]